bitfinex/quotes_SOLUSD_20251201
["timestamp","ask_amount","ask_price","bid_price","bid_amount"]
[1764551959904,12.10465649,128.98,128.97,3.5]
[1764551960108,12.10465649,128.98,128.93,19.86042481]
[1764551960307,12.80465649,128.97,128.94,3.5]
[1764551960514,0.7,128.97,128.94,3.5]
[1764551960713,7.70354725,128.95,128.92,7.7565984]
[1764551960916,7.70354725,128.93,128.88,19.39653978]
[1764551961113,7.70354725,128.93,128.89,11.25801256]
[1764551961309,0.7,128.92,128.89,11.25801256]
[1764551961621,0.7,128.92,128.9,3.5]
[1764551961622,8.40354725,128.92,128.9,3.5]
[1764551961804,7.70354725,128.91,128.86,15.46390733]
[1764551961999,0.7,128.9,128.87,3.5]
[1764551962300,0.7,128.9,128.88,3.5]
[1764551963219,0.7,128.9,128.89,3.5]
[1764551963522,16.16149915,128.9,128.84,15.46511198]
[1764551963819,7.70354725,128.88,128.85,3.5]
[1764551964119,8.4579519,128.9,128.85,3.5]
[1764551964120,0.7,128.89,128.85,3.5]
[1764551964324,7.70354725,128.87,128.84,7.76156473]
[1764551964619,0.7,128.89,128.85,3.5]
[1764551965199,8.45866819,128.89,128.85,3.5]
[1764551965412,0.7,128.89,128.85,11.26089026]
[1764551965614,0.7,128.89,128.85,18.96443751]
[1764551965819,7.70354725,128.91,128.86,7.70354725]
[1764551966017,0.69,128.9,128.85,18.96443751]
[1764551966323,0.69,128.9,128.86,7.70354725]
[1764551966703,28.20181065,128.93,128.87,8.40354725]
[1764551966704,0.69,128.92,128.87,8.40354725]
[1764551966906,0.69,128.92,128.88,11.20354725]
[1764551967227,8.39354725,128.92,128.89,3.5]
[1764551968028,0.69,128.91,128.89,3.5]
[1764551968535,0.69,128.91,128.84,7.76156473]
[1764551968827,0.69,128.91,128.82,7.76276975]
[1764551968828,7.70354725,128.86,128.82,7.76276975]
[1764551969017,7.70354725,128.86,128.85,3.5]
[1764551969221,8.39354725,128.86,128.85,3.5]
[1764551969661,8.39354725,128.86,128.78,0.2]
[1764551969662,8.80994492,128.85,128.78,0.2]
[1764551969936,7.70354725,128.82,128.8,3.5]
[1764551970316,8.39354725,128.82,128.8,3.5]
[1764551970513,8.39354725,128.81,128.78,0.2]
[1764551970831,32.82235617,128.79,128.71,0.7]
[1764551971049,7.70354725,128.76,128.72,3.5]
[1764551971332,15.4706876,128.75,128.73,3.5]
[1764551971529,7.76714035,128.75,128.69,0.1]
[1764551971735,8.39354725,128.74,128.7,3.5]
[1764551971935,8.39354725,128.74,128.69,0.1]
[1764551971936,7.70354725,128.73,128.69,0.1]
[1764551972145,8.39354725,128.73,128.71,3.5]
[1764551972307,7.70354725,128.74,128.71,3.5]
[1764551973037,7.76704394,128.75,128.69,0.1]
[1764551973038,7.70354725,128.72,128.69,0.1]
[1764551973235,15.47355502,128.7,128.69,0.1]
[1764551973413,8.80994492,128.69,128.64,3.5]
[1764551973617,7.70354725,128.69,128.64,11.90354725]
[1764551973916,7.70354725,128.69,128.64,4.2]
[1764551974128,7.70354725,128.68,128.64,4.2]
[1764551974315,7.70354725,128.68,128.65,3.5]
[1764551974515,7.70354725,128.67,128.65,3.5]
[1764551974710,9.49994492,128.7,128.65,3.5]
[1764551975015,7.70354725,128.68,128.65,3.5]
[1764551975429,16.998864,128.72,128.66,0.7]
[1764551975732,0.69,128.72,128.66,0.7]
[1764551976041,7.70354725,128.69,128.66,0.7]
[1764551976335,7.70354725,128.69,128.65,3.5]
[1764551976527,0.69,128.68,128.65,3.5]
[1764551976728,7.70354725,128.7,128.66,0.7]
[1764551977226,7.70354725,128.69,128.64,24.71241125]
[1764551977552,7.70354725,128.67,128.65,3.5]
[1764551978135,7.70354725,128.68,128.65,3.5]
[1764551978511,7.70354725,128.69,128.65,3.5]
[1764551978914,7.70354725,128.68,128.65,3.5]
[1764551979346,8.39354725,128.69,128.65,11.27299723]
[1764551979521,16.16417761,128.69,128.65,3.5]
[1764551979837,7.70354725,128.68,128.65,3.5]
[1764551980137,7.70354725,128.69,128.65,11.97293302]
[1764551980512,7.70354725,128.67,128.65,11.27293302]
[1764551980712,7.70354725,128.67,128.66,3.5]
[1764551980929,7.70354725,128.68,128.66,3.5]
[1764551981123,7.70354725,128.67,128.63,7.77376057]
[1764551981312,7.70354725,128.64,128.61,7.77543647]
[1764551981514,7.70354725,128.63,128.61,7.77543647]
[1764551981715,7.70354725,128.62,128.6,3.5]
[1764551981954,8.80994492,128.64,128.6,3.5]
[1764551982255,7.70354725,128.62,128.6,3.5]
[1764551982745,17.27388121,128.64,128.6,3.5]
[1764551983045,7.70354725,128.66,128.61,8.40354725]
[1764551983346,7.70354725,128.65,128.6,18.97944218]
[1764551983513,8.80994492,128.68,128.61,4.2]
[1764551983713,7.70354725,128.65,128.61,4.2]
[1764551983921,0.69,128.68,128.61,4.2]
[1764551983922,7.70354725,128.66,128.62,0.7]
[1764551984133,7.70354725,128.67,128.63,7.77423618]
[1764551984314,8.46121541,128.68,128.63,7.77423618]
[1764551984535,7.70354725,128.67,128.63,8.47423618]
[1764551985429,7.70354725,128.66,128.63,7.77423618]
[1764551985620,7.70354725,128.66,128.63,8.47423618]
[1764551987319,8.46121541,128.68,128.63,8.47423618]
[1764551987320,16.16476266,128.68,128.63,8.47423618]
[1764551987520,7.70354725,128.67,128.63,8.47423618]
[1764551987738,7.70354725,128.66,128.64,3.52]
[1764551988443,8.39354725,128.66,128.64,3.52]
[1764551988627,8.39354725,128.65,128.63,7.77423618]
[1764551988832,7.70354725,128.65,128.64,3.52]
[1764551990745,0.69,128.67,128.64,3.52]
[1764551990944,7.70354725,128.66,128.64,3.52]
[1764551991146,7.70354725,128.65,128.64,3.52]
[1764551991543,7.70354725,128.66,128.64,3.52]
[1764551992147,16.1654175,128.67,128.64,3.52]
[1764551992446,7.70354725,128.69,128.65,0.7]
[1764551992953,0.69,128.75,128.66,7.70354725]
[1764551993147,7.70354725,128.74,128.67,16.308864]
[1764551993452,7.70354725,128.73,128.68,4.22]
[1764551993646,7.70354725,128.73,128.68,11.92354725]
[1764551993841,8.45699029,128.75,128.68,11.92354725]
[1764551993842,7.70354725,128.74,128.69,8.40354725]
[1764551994028,16.16117582,128.74,128.69,8.40354725]
[1764551994227,16.16117582,128.74,128.69,0.7]
[1764551994951,16.16117582,128.74,128.69,35.60051086]
[1764551994952,8.39354725,128.74,128.69,35.60051086]
[1764551995257,7.70354725,128.74,128.69,35.60051086]
[1764551995432,7.70354725,128.74,128.7,0.7]
[1764551995934,7.70354725,128.74,128.7,8.43950482]
[1764551996143,8.39354725,128.74,128.7,8.43950482]
[1764551996341,8.39354725,128.74,128.71,3.52]
[1764551996634,7.70354725,128.75,128.71,3.52]
[1764551996831,8.39354725,128.75,128.71,3.52]
[1764551997031,16.308864,128.76,128.71,3.52]
[1764551997249,24.01241125,128.76,128.72,0.67]
[1764551997832,31.77897391,128.76,128.72,0.67]
[1764551998332,7.70354725,128.73,128.68,8.37354725]
[1764551998534,8.39354725,128.73,128.69,3.52]
[1764551999053,7.70354725,128.7,128.65,0.67]
[1764551999235,7.70354725,128.69,128.66,3.52]
[1764551999433,7.70354725,128.7,128.66,3.52]
[1764551999645,7.70354725,128.71,128.67,0.67]
[1764552000364,7.70354725,128.71,128.68,3.52]
[1764552000365,7.70354725,128.7,128.68,3.52]
[1764552000657,15.47303303,128.71,128.68,3.52]
[1764552000853,7.70354725,128.69,128.63,35.74383294]
[1764552001057,7.70354725,128.67,128.65,3.52]
[1764552001234,7.70354725,128.67,128.63,20.10496894]
[1764552001434,7.70354725,128.67,128.64,3.52]
[1764552001927,7.70354725,128.67,128.64,11.29363184]
[1764552002529,7.77145662,128.68,128.65,0.67]
[1764552002756,16.308864,128.7,128.65,8.37354725]
[1764552002963,7.70354725,128.8,128.69,7.70354725]
[1764552003153,27.86602297,128.79,128.71,7.70354725]
[1764552003338,7.70354725,128.75,128.7,3.52]
[1764552003534,7.70354725,128.73,128.67,16.978864]
[1764552003743,7.70354725,128.72,128.68,4.19]
[1764552003942,15.47415879,128.69,128.65,8.44300015]
[1764552004253,7.70354725,128.69,128.65,8.44300015]
[1764552004459,7.70354725,128.68,128.65,0.67]
[1764552004756,7.70354725,128.67,128.63,7.77364874]
[1764552004958,16.998864,128.7,128.63,7.77364874]
[1764552005147,7.70354725,128.67,128.64,3.52]
[1764552005459,7.70354725,128.66,128.64,3.52]
[1764552005644,7.70354725,128.67,128.64,3.52]
[1764552006482,7.70354725,128.66,128.63,3.52]
[1764552006658,34.9028012,128.68,128.64,0.67]
[1764552006834,7.70354725,128.67,128.63,3.52]
[1764552007035,7.70354725,128.67,128.58,8.80994492]
[1764552007036,7.70354725,128.64,128.59,8.44656287]
[1764552007246,7.70354725,128.66,128.61,7.70354725]
[1764552007452,7.70354725,128.66,128.62,0.67]
[1764552007760,7.77302759,128.65,128.62,0.67]
[1764552007959,15.47499153,128.68,128.63,7.70354725]
[1764552008142,15.47499153,128.68,128.64,3.52]
[1764552008346,7.70354725,128.65,128.64,3.52]
[1764552008548,9.49994492,128.67,128.64,3.52]
[1764552008743,7.70354725,128.66,128.64,3.52]
[1764552009058,7.70354725,128.65,128.59,24.08536631]
[1764552009261,7.70354725,128.63,128.6,3.52]
[1764552009571,7.70354725,128.62,128.59,0.67]
[1764552009763,7.70354725,128.62,128.6,3.52]
[1764552010063,7.70354725,128.62,128.59,0.67]
[1764552010064,7.70354725,128.61,128.56,0.87]
[1764552010356,7.70354725,128.61,128.57,4.19]
[1764552010558,7.70354725,128.59,128.58,3.52]
[1764552010876,7.70354725,128.6,128.58,3.52]
[1764552011556,7.70354725,128.6,128.56,0.87]
[1764552011557,8.80994492,128.59,128.56,0.2]
[1764552011870,7.70354725,128.58,128.56,0.2]
[1764552012163,16.308864,128.63,128.56,16.35188676]
[1764552012336,7.70354725,128.62,128.57,8.37354725]
[1764552012542,7.70354725,128.61,128.58,0.67]
[1764552012853,7.70354725,128.62,128.59,3.52]
[1764552013034,7.70354725,128.64,128.59,3.52]
[1764552013235,7.70354725,128.64,128.56,7.97833951]
[1764552013236,7.70354725,128.61,128.57,0.67]
[1764552013456,7.70354725,128.61,128.58,3.52]
[1764552013857,7.70354725,128.59,128.57,3.52]
[1764552014243,7.70354725,128.58,128.56,0.2]
[1764552014445,8.80994492,128.6,128.56,0.2]
[1764552014446,7.70354725,128.57,128.56,3.72]
[1764552014651,7.70354725,128.57,128.56,0.2]
[1764552014961,17.20349217,128.57,128.56,0.2]
[1764552015439,8.80994492,128.56,128.52,0.2]
[1764552015860,8.80994492,128.61,128.53,8.37354725]
[1764552016164,8.80994492,128.61,128.53,4.19]
[1764552016165,7.70354725,128.56,128.53,4.19]
[1764552016361,16.308864,128.61,128.54,0.67]
[1764552016544,7.70354725,128.58,128.54,0.67]
[1764552016738,7.70354725,128.59,128.54,8.37354725]
[1764552017253,7.70354725,128.59,128.55,0.67]
[1764552017668,7.70354725,128.6,128.55,8.37354725]
[1764552017871,7.70354725,128.59,128.55,8.44894607]
[1764552018167,7.70354725,128.59,128.56,0.67]
[1764552018359,7.70354725,128.6,128.56,0.67]
[1764552018555,0.69,128.66,128.57,7.70354725]
[1764552018864,7.70354725,128.62,128.58,4.19]
[1764552019164,7.70354725,128.61,128.58,0.67]
[1764552019340,7.70354725,128.62,128.58,4.19]
[1764552019539,7.70354725,128.63,128.58,4.19]
[1764552019760,7.70354725,128.62,128.58,4.19]
[1764552019940,7.70354725,128.62,128.59,0.67]
[1764552020141,15.47778343,128.63,128.59,0.67]
[1764552020359,19.90914589,128.63,128.59,0.67]
[1764552020562,58.97551222,128.68,128.59,12.80490971]
[1764552020754,12.13490971,128.64,128.59,12.80490971]
[1764552020960,12.13490971,128.64,128.6,0.67]
[1764552021966,12.13490971,128.64,128.6,8.44552367]
[1764552022468,12.13490971,128.64,128.61,0.67]
[1764552022761,12.13490971,128.64,128.62,3.52]
[1764552023269,36.21559734,128.67,128.62,11.29475454]
[1764552023463,12.13490971,128.66,128.63,0.67]
[1764552023768,28.44377371,128.67,128.63,0.67]
[1764552024836,19.90613032,128.68,128.63,8.44417231]
[1764552025040,7.77122061,128.68,128.63,20.57908202]
[1764552025242,19.90613032,128.68,128.64,0.67]
[1764552025773,0.71,128.74,128.65,12.13490971]
[1764552026078,0.71,128.74,128.67,12.13490971]
[1764552026079,12.13490971,128.72,128.67,12.13490971]
[1764552026577,0.71,128.74,128.63,30.72976276]
[1764552026578,12.13490971,128.68,128.63,30.72976276]
[1764552026770,12.13490971,128.67,128.64,0.7]
[1764552026951,19.90642693,128.68,128.64,0.7]
[1764552027548,7.77151722,128.68,128.64,8.47321133]
[1764552027743,19.90642693,128.68,128.64,8.47321133]
[1764552027955,19.90642693,128.68,128.65,0.68]
[1764552027956,7.77151722,128.68,128.65,0.68]
[1764552028642,19.42221467,128.72,128.66,12.13490971]
[1764552028874,19.9037102,128.72,128.67,16.33490971]
[1764552029172,19.90330391,128.73,128.67,16.33490971]
[1764552029381,19.9026914,128.74,128.69,12.13490971]
[1764552029545,12.13490971,128.74,128.69,12.13490971]
[1764552029745,19.9020835,128.75,128.7,12.81490971]
[1764552029952,19.9020835,128.75,128.71,3.52]
[1764552029953,12.13490971,128.74,128.71,3.52]
[1764552030242,7.76717379,128.75,128.71,4.2]
[1764552030448,12.13490971,128.73,128.68,0.68]
[1764552030685,12.13490971,128.7,128.67,3.52]
[1764552031567,0.69,128.72,128.68,0.68]
[1764552031568,12.13490971,128.72,128.68,0.68]
[1764552031868,12.13490971,128.73,128.68,12.81490971]
[1764552032057,28.44377371,128.74,128.68,12.81490971]
[1764552032263,12.13490971,128.74,128.69,0.68]
[1764552032576,19.9020835,128.75,128.7,19.90491748]
[1764552032870,12.13490971,128.75,128.71,3.52]
[1764552033070,12.13490971,128.75,128.71,4.2]
[1764552033071,19.90199127,128.75,128.71,4.2]
[1764552033643,19.90199127,128.75,128.72,3.52]
[1764552034055,12.13490971,128.73,128.72,3.52]
[1764552034254,12.82490971,128.74,128.72,3.52]
[1764552034660,19.90277411,128.74,128.72,3.52]
[1764552034858,20.59277411,128.74,128.72,3.52]
[1764552035058,12.13490971,128.73,128.72,3.52]
[1764552035280,7.7678644,128.74,128.72,3.52]
[1764552035491,19.90277411,128.74,128.72,3.52]
[1764552035649,12.13490971,128.73,128.72,3.52]
[1764552036051,20.94485463,128.73,128.67,7.7712283]
[1764552036252,12.13490971,128.71,128.68,3.52]
[1764552037053,7.76925203,128.72,128.67,8.45173814]
[1764552037253,12.13490971,128.71,128.68,3.5]
[1764552037471,0.69,128.72,128.68,3.5]
[1764552037778,12.13490971,128.72,128.68,4.18]
[1764552038089,20.94485463,128.73,128.68,4.18]
[1764552038394,28.44377371,128.75,128.69,12.81490971]
[1764552038681,12.13490971,128.73,128.7,3.5]
[1764552038876,12.13490971,128.74,128.7,3.5]
[1764552039057,19.90303344,128.74,128.7,4.18]
[1764552039479,7.76812373,128.74,128.7,11.26964732]
[1764552039666,7.76812373,128.74,128.7,11.94964732]
[1764552039863,12.82490971,128.76,128.71,0.68]
[1764552040074,12.13490971,128.75,128.71,0.68]
[1764552040370,12.13490971,128.75,128.72,3.5]
[1764552040591,12.13490971,128.73,128.7,7.76964732]
[1764552040760,12.13490971,128.73,128.71,3.5]
[1764552041355,19.41596769,128.76,128.72,0.68]
[1764552041356,16.308864,128.76,128.72,0.68]
[1764552041552,29.13377371,128.76,128.71,11.26928576]
[1764552041861,12.13490971,128.75,128.71,11.94928576]
[1764552042280,12.13490971,128.75,128.72,0.68]
[1764552042479,12.13490971,128.75,128.71,11.94928576]
[1764552043182,12.13490971,128.74,128.71,3.5]
[1764552043388,12.13490971,128.73,128.71,3.5]
[1764552043856,16.57741997,128.75,128.71,3.5]
[1764552044184,12.82490971,128.74,128.72,3.5]
[1764552044375,20.59294201,128.74,128.72,3.5]
[1764552044986,7.7680323,128.74,128.72,3.5]
[1764552045159,12.13490971,128.75,128.72,4.18]
[1764552045476,55.62761419,128.76,128.72,4.18]
[1764552045677,12.13490971,128.75,128.72,4.18]
[1764552046985,36.21058826,128.76,128.72,11.94856759]
[1764552047173,12.13490971,128.75,128.72,11.94856759]
[1764552047686,19.90172426,128.76,128.72,11.94856759]
[1764552048283,7.76578395,128.77,128.72,11.94856759]
[1764552048475,0.69,128.75,128.69,0.68]
[1764552048671,0.69,128.75,128.7,3.5]
[1764552048672,12.13490971,128.73,128.7,3.5]
[1764552049376,12.13490971,128.73,128.7,11.26964813]
[1764552049586,19.90318026,128.73,128.7,11.26964813]
[1764552049988,19.90318026,128.73,128.7,3.5]
[1764552050664,19.90318026,128.73,128.7,4.18]
[1764552051086,12.13490971,128.73,128.7,4.18]
[1764552051263,19.90325068,128.73,128.7,4.18]
[1764552051963,19.90325068,128.73,128.7,3.5]
[1764552052268,7.76834097,128.73,128.7,4.18]
[1764552052768,7.76834097,128.73,128.71,0.68]
[1764552052968,8.80994492,128.76,128.71,0.68]
[1764552052969,12.13490971,128.76,128.71,0.68]
[1764552053670,7.76638707,128.76,128.71,8.44904472]
[1764552053871,12.13490971,128.79,128.73,12.13490971]
[1764552054074,12.13490971,128.79,128.74,16.31490971]
[1764552054277,7.76449672,128.8,128.74,16.31490971]
[1764552054278,19.89940643,128.8,128.74,16.31490971]
[1764552054478,19.99846022,128.81,128.75,12.81490971]
[1764552054997,0.1,128.81,128.76,12.81490971]
[1764552055289,0.1,128.81,128.78,12.13490971]
[1764552055494,0.1,128.81,128.77,16.31490971]
[1764552055681,0.1,128.81,128.79,7.76457799]
[1764552055878,0.1,128.81,128.8,3.5]
[1764552056083,0.1,128.81,128.8,4.2]
[1764552057995,0.1,128.81,128.8,3.5]
[1764552058197,0.1,128.81,128.8,4.2]
[1764552059678,0.1,128.81,128.79,7.76417849]
[1764552059882,0.1,128.81,128.8,3.5]
[1764552060196,0.1,128.81,128.79,7.76417849]
[1764552060498,0.1,128.81,128.8,3.5]
[1764552060796,12.93490971,128.81,128.76,7.76597899]
[1764552061098,12.93490971,128.81,128.77,16.33490971]
[1764552061099,0.1,128.81,128.77,16.33490971]
[1764552061276,0.1,128.82,128.77,16.33490971]
[1764552061277,0.1,128.82,128.8,28.44377371]
[1764552061470,0.1,128.82,128.79,16.308864]
[1764552061782,21.04485463,128.88,128.8,3.5]
[1764552061783,0.1,128.88,128.8,3.5]
[1764552061981,0.1,128.88,128.8,0.7]
[1764552061982,12.13490971,128.85,128.8,0.7]
[1764552062290,12.13490971,128.85,128.81,3.5]
[1764552062477,12.13490971,128.83,128.82,3.5]
[1764552062672,28.20933965,128.87,128.82,3.5]
[1764552062673,7.76094405,128.86,128.82,3.5]
[1764552062876,16.408864,128.88,128.85,12.13490971]
[1764552062877,0.1,128.88,128.85,12.13490971]
[1764552063075,12.13490971,128.87,128.86,3.5]
[1764552063398,12.83490971,128.87,128.85,3.5]
[1764552063690,12.13490971,128.86,128.85,3.5]
[1764552063897,12.13490971,128.86,128.83,0.7]
[1764552064096,12.13490971,128.86,128.84,3.5]
[1764552064473,20.59525576,128.87,128.84,3.5]
[1764552064995,12.13490971,128.85,128.79,0.7]
[1764552065300,12.13490971,128.84,128.82,3.5]
[1764552065797,7.76034605,128.87,128.83,12.83490971]
[1764552065996,7.76034605,128.87,128.83,0.7]
[1764552066293,0.8,128.88,128.84,0.7]
[1764552066527,0.1,128.88,128.85,3.5]
[1764552066703,0.1,128.88,128.85,15.63490971]
[1764552066885,0.1,128.88,128.86,0.7]
[1764552067088,12.93490971,128.88,128.84,8.46121974]
[1764552067290,12.23490971,128.88,128.85,3.5]
[1764552067487,0.1,128.88,128.85,16.33490971]
[1764552067690,0.1,128.88,128.86,0.7]
[1764552067885,0.1,128.88,128.85,0.7]
[1764552068088,7.8591558,128.88,128.86,3.5]
[1764552068288,7.8591558,128.88,128.86,11.26024633]
[1764552068289,0.1,128.88,128.86,11.26024633]
[1764552068490,0.1,128.88,128.86,11.96024633]
[1764552069186,0.1,128.88,128.86,11.26024633]
[1764552069397,0.1,128.88,128.87,0.7]
[1764552070396,0.1,128.88,128.87,8.45975789]
[1764552070802,0.1,128.88,128.87,20.5946676]
[1764552070976,8.80994492,128.95,128.87,56.30292633]
[1764552071181,12.13490971,128.97,128.92,12.13490971]
[1764552071389,8.45193798,129.0,128.93,15.63490971]
[1764552071583,12.83490971,128.99,128.93,15.63490971]
[1764552071881,12.13490971,128.97,128.93,0.7]
[1764552072078,12.13490971,128.97,128.94,3.5]
[1764552072581,12.83490971,128.96,128.91,7.75716213]
[1764552072798,12.13490971,128.95,128.92,3.5]
[1764552073602,12.83490971,128.95,128.92,3.5]
[1764552073794,12.13490971,128.94,128.92,3.5]
[1764552074203,0.7,128.95,128.92,3.5]
[1764552074390,12.13490971,128.94,128.93,3.5]
[1764552074601,12.13490971,128.95,128.93,3.5]
[1764552074913,12.13490971,128.94,128.93,3.5]
[1764552075288,12.83490971,128.94,128.89,24.76700734]
[1764552075604,0.7,128.94,128.9,3.5]
[1764552075805,19.38735944,128.95,128.87,19.39875812]
[1764552075806,12.13490971,128.91,128.87,0.7]
[1764552076005,12.13490971,128.91,128.88,3.5]
[1764552076399,12.13490971,128.91,128.88,4.2]
[1764552077104,12.13490971,128.92,128.89,3.5]
[1764552077306,12.13490971,128.96,128.9,12.13490971]
[1764552077510,12.83490971,128.97,128.91,12.13490971]
[1764552077698,12.13490971,128.98,128.92,15.63490971]
[1764552078007,12.13490971,128.98,128.93,16.308864]
[1764552078218,12.13490971,128.98,128.93,0.7]
[1764552078424,12.83490971,128.98,128.94,3.5]
[1764552078602,20.5882858,128.98,128.94,3.5]
[1764552078792,12.83490971,128.98,128.94,4.2]
[1764552079114,12.83490971,128.98,128.94,11.95548646]
[1764552079496,20.58821398,128.98,128.94,11.95548646]
[1764552079896,20.58821398,128.98,128.94,4.2]
[1764552080107,20.58821398,128.98,128.94,3.5]
[1764552080281,19.88821398,128.98,128.93,7.7560445]
[1764552080484,12.13490971,128.94,128.92,3.5]
[1764552080713,12.13490971,128.93,128.92,3.5]
[1764552081008,12.13490971,128.94,128.92,3.5]
[1764552082315,12.83490971,128.93,128.92,3.5]
[1764552082488,8.41090019,128.93,128.89,7.75810773]
[1764552082688,0.7,128.93,128.91,3.5]
[1764552083295,8.45650596,128.93,128.91,3.5]
[1764552083610,8.80994492,128.92,128.87,7.75930579]
[1764552083910,7.71090019,128.91,128.88,3.5]
[1764552084212,0.7,128.92,128.88,3.5]
[1764552084213,7.71090019,128.9,128.88,3.5]
[1764552084395,7.71090019,128.92,128.89,0.72]
[1764552084713,7.75650596,128.93,128.89,0.72]
[1764552084902,7.71090019,128.94,128.89,0.72]
[1764552085389,7.71090019,128.94,128.9,7.7579519]
[1764552085585,7.71090019,128.94,128.91,3.5]
[1764552085790,7.71090019,128.94,128.91,4.22]
[1764552086513,7.71090019,128.93,128.92,3.5]
[1764552086708,7.71090019,128.95,128.91,0.72]
[1764552086913,7.71090019,128.97,128.92,3.5]
[1764552087304,7.71090019,128.97,128.93,0.72]
[1764552087495,7.71090019,128.97,128.93,8.47557771]
[1764552087893,15.46443533,128.98,128.94,0.72]
[1764552088093,15.46443533,128.98,128.95,3.5]
[1764552088328,7.75353514,128.98,128.95,3.5]
[1764552088491,7.71090019,128.99,128.96,0.72]
[1764552088891,7.75226914,129.0,128.96,0.72]
[1764552089111,7.71090019,128.99,128.96,0.72]
[1764552089706,7.71090019,128.99,128.96,8.47377999]
[1764552089906,7.81090019,129.01,128.96,8.47377999]
[1764552090115,7.71090019,129.0,128.97,4.22]
[1764552090316,7.71090019,129.0,128.94,8.47529232]
[1764552090317,7.71090019,128.98,128.94,8.47529232]
[1764552090520,7.71090019,128.98,128.95,3.5]
[1764552090919,7.71090019,128.96,128.91,0.72]
[1764552091096,7.71090019,128.96,128.93,16.308864]
[1764552091299,8.42090019,128.95,128.91,0.72]
[1764552091618,7.71090019,128.95,128.94,3.5]
[1764552091916,15.46591318,128.95,128.89,8.4785538]
[1764552092220,7.71090019,128.93,128.9,3.5]
[1764552092605,7.71090019,128.93,128.9,4.22]
[1764552092807,7.71090019,128.94,128.9,4.22]
[1764552093212,7.71090019,128.94,128.9,0.72]
[1764552093414,7.71090019,128.94,128.91,3.5]
[1764552093600,7.71090019,128.92,128.91,3.5]
[1764552093800,7.71090019,128.92,128.88,24.7878092]
[1764552094005,7.71090019,128.93,128.91,3.5]
[1764552094205,0.71,128.95,128.91,3.5]
[1764552094421,7.71090019,128.93,128.91,3.5]
[1764552094618,7.71090019,128.94,128.91,19.808864]
[1764552094824,7.71090019,128.93,128.91,3.5]
[1764552095218,7.71090019,128.94,128.89,16.308864]
[1764552095426,7.71090019,128.94,128.9,4.22]
[1764552095821,7.71090019,128.94,128.91,0.72]
[1764552096021,7.71090019,128.96,128.92,24.06561237]
[1764552096322,7.71090019,128.97,128.93,4.22]
[1764552096825,7.71090019,128.94,128.9,0.72]
[1764552097009,7.71090019,128.94,128.88,7.71090019]
[1764552097010,7.71090019,128.92,128.89,16.308864]
[1764552097216,7.71090019,128.92,128.9,3.5]
[1764552097411,24.77222151,128.98,128.9,3.5]
[1764552097729,7.71090019,128.96,128.91,8.43090019]
[1764552098225,7.71090019,128.97,128.92,19.68764856]
[1764552098624,7.71090019,128.96,128.93,3.5]
[1764552099022,7.71090019,128.96,128.93,4.22]
[1764552099608,7.71090019,128.95,128.91,8.47713975]
[1764552099807,7.71090019,128.95,128.92,3.5]
[1764552100207,7.71090019,128.95,128.92,4.22]
[1764552101627,7.71090019,128.95,128.92,0.72]
[1764552101812,7.71090019,128.94,128.93,3.5]
[1764552102014,7.71090019,128.94,128.9,8.4779519]
[1764552102213,7.71090019,128.94,128.91,4.22]
[1764552102413,7.71090019,128.95,128.91,4.22]
[1764552103026,7.71090019,128.94,128.91,0.72]
[1764552103329,7.71090019,128.94,128.92,3.5]
[1764552103632,7.75487434,128.96,128.92,11.2565761]
[1764552103829,7.71090019,128.93,128.91,7.75718529]
[1764552104052,0.71,128.95,128.92,3.5]
[1764552104208,7.71090019,128.94,128.92,3.5]
[1764552105633,7.71090019,128.93,128.92,3.5]
[1764552105831,7.71090019,128.93,128.81,38.81400324]
[1764552105832,8.80994492,128.92,128.81,38.81400324]
[1764552106139,15.46608054,128.95,128.89,7.71090019]